fUST/lending_fUST_20251011
["ID","MTS","AMOUNT","RATE_DAILY","PERIOD"]
[390822922,1760172664786,-3509.42,0.00027397,9]
[390822923,1760172664796,-500.0,0.00027397,9]
[390822924,1760172664805,-500.0,0.00027397,9]
[390822925,1760172664814,-3509.42,0.00027397,9]
[390822926,1760172664823,-500.0,0.00027397,9]
[390822927,1760172664833,-3509.42,0.00027397,9]
[390822928,1760172664842,-500.0,0.00027397,9]
[390822929,1760172664850,-3509.42,0.00027397,9]
[390822930,1760172664862,-358.78695562,0.00027397,9]
[390822931,1760172664872,-3509.42,0.00027397,9]
[390822932,1760172664882,-3509.42,0.00027397,9]
[390822933,1760172664891,-3509.42,0.00027397,9]
[390822934,1760172664901,-500.0,0.00027397,9]
[390822935,1760172664912,-1002.34,0.00027397,9]
[390822936,1760172664922,-3509.42,0.00027397,9]
[390822937,1760172664932,-500.0,0.00027397,9]
[390822938,1760172664942,-1002.34,0.00027397,9]
[390822939,1760172664952,-3147.52,0.00027397,9]
[390822940,1760172664962,-500.0,0.00027397,9]
[390822941,1760172664971,-3509.44,0.00027397,9]
[390822942,1760172664981,-1002.34,0.00027397,9]
[390822943,1760172664990,-3147.52,0.00027397,9]
[390822944,1760172665000,-500.0,0.00027397,9]
[390822945,1760172665010,-1002.34,0.00027397,9]
[390822946,1760172665020,-3147.52,0.00027397,9]
[390822947,1760172665031,-500.0,0.00027397,9]
[390822948,1760172665041,-1002.34,0.00027397,9]
[390822949,1760172665138,-4810.09,0.000274,2]
[390822950,1760172665148,-10193.77,0.000274,2]
[390822951,1760172665157,-165.283065,0.000274,9]
[390822952,1760172665167,-204.51,0.000274,4]
[390822953,1760172665177,-220.57,0.000274,4]
[390822954,1760172665186,-160.0,0.000274,2]
[390822955,1760172665196,-151.0,0.00027452,9]
[390822956,1760172665206,-198.0,0.00027452,9]
[390822957,1760172665216,-419.0,0.00027452,9]
[390822958,1760172665225,-151.0,0.00027452,9]
[390822959,1760172665235,-198.0,0.00027452,9]
[390822960,1760172665244,-500.0,0.00027452,9]
[390822961,1760172665254,-500.0,0.00027452,9]
[390822962,1760172665265,-151.0,0.00027452,9]
[390822963,1760172665275,-610.17235922,0.00027452,9]
[390822964,1760172665286,-151.0,0.00027452,9]
[390822965,1760172665296,-151.0,0.00027452,9]
[390822966,1760172665305,-151.0,0.00027452,9]
[390822967,1760172665314,-198.0,0.00027452,9]
[390822968,1760172665324,-198.0,0.00027452,9]
[390822969,1760172665334,-151.0,0.00027452,9]
[390822970,1760172665343,-500.0,0.00027464,10]
[390822971,1760172665354,-168.0,0.00027504,7]
[390822972,1760172665363,-419.0,0.00027507,9]
[390822973,1760172665372,-151.0,0.00027507,9]
[390822974,1760172665381,-151.0,0.00027507,9]
[390822975,1760172665390,-214.78584438,0.00027507,9]
[390822976,1760172665399,-151.0,0.00027507,9]
[390822977,1760172665408,-151.0,0.00027507,9]
[390822978,1760172665418,-151.0,0.00027507,9]
[390822979,1760172665427,-151.0,0.00027507,9]
[390822980,1760172665436,-151.0,0.00027507,9]
[390822981,1760172665445,-292.0,0.00027523,2]
[390822982,1760172665457,-500.0,0.00027538,2]
[390822983,1760172665466,-419.0,0.00027561,9]
[390822984,1760172665475,-151.0,0.00027561,9]
[390822985,1760172665484,-151.0,0.00027561,9]
[390822986,1760172665494,-151.0,0.00027561,9]
[390822987,1760172665504,-151.0,0.00027561,9]
[390822988,1760172665513,-151.0,0.00027561,9]
[390822989,1760172665523,-151.0,0.00027561,9]
[390822990,1760172665532,-3310.35449076,0.00027565,2]
[390822991,1760172665541,-419.0,0.00027616,9]
[390822992,1760172665550,-199.0,0.00027616,9]
[390822993,1760172665559,-245.0,0.00027616,9]
[390822994,1760172665568,-229.5850303,0.00027616,9]
[390822995,1760172665577,-279.0027198,0.00027616,9]
[390822996,1760172665586,-151.0,0.00027616,9]
[390822997,1760172665595,-1008.11278191,0.00027621,5]
[390822998,1760172665604,-500.0,0.00027621,5]
[390822999,1760172665614,-1000.0,0.00027621,5]
[390823000,1760172665624,-1000.0,0.00027621,5]
[390823001,1760172665633,-1000.0,0.00027621,5]
[390823002,1760172665643,-500.0,0.00027621,5]
[390823003,1760172665651,-953.54219421,0.00027621,5]
[390823004,1760172665661,-292.0,0.00027623,2]
[390823005,1760172665670,-168.0,0.0002765,2]
[390823006,1760172665679,-401.0,0.00027653,2]
[390823007,1760172665689,-419.0,0.00027671,9]
[390823008,1760172665698,-245.0,0.00027671,9]
[390823009,1760172665709,-292.0,0.00027672,2]
[390823010,1760172665718,-165.283065,0.00027682,9]
[390823011,1760172665727,-153.609657,0.00027682,9]
[390823012,1760172665737,-600.0,0.00027712,30]
[390823013,1760172665746,-1000.0,0.00027721,5]
[390823014,1760172665755,-1000.0,0.00027721,5]
[390823015,1760172665764,-500.0,0.00027721,5]
[390823016,1760172665773,-1000.0,0.00027721,5]
[390823017,1760172665782,-1000.0,0.00027721,5]
[390823018,1760172665791,-1000.0,0.00027721,5]
[390823019,1760172665801,-1000.0,0.00027721,5]
[390823020,1760172665810,-1003.23038551,0.00027721,5]
[390823021,1760172665819,-320.63419957,0.00027721,5]
[390823022,1760172665828,-622.50427265,0.00027721,5]
[390823023,1760172665837,-188.03136191,0.00027721,5]
[390823024,1760172665846,-1000.0,0.00027721,5]
[390823025,1760172665855,-1000.0,0.00027721,5]
[390823026,1760172665865,-502.27474624,0.00027721,5]
[390823027,1760172665879,-1000.0,0.00027721,5]
[390823028,1760172665888,-1000.0,0.00027721,5]
[390823029,1760172665907,-419.0,0.00027726,9]
[390823030,1760172665925,-981.732,0.00027727,2]
[390823031,1760172665942,-2159.0,0.00027727,2]
[390823032,1760172665959,-630.0,0.00027727,2]
[390823033,1760172665977,-150.0,0.00027727,2]
[390823034,1760172665995,-174.756,0.00027738,2]
[390823035,1760172666012,-500.0,0.00027738,10]
[390823036,1760172666027,-419.0,0.00027781,9]
[390823037,1760172666045,-176.95875642,0.00027812,2]
[390823038,1760172666507,-323.04124358,0.00027812,2]
[390823039,1760172666517,-3310.35449076,0.00027832,2]
[390823040,1760172666527,-419.0,0.00027835,9]
[390823041,1760172666537,-419.0,0.0002789,9]
[390823042,1760172666547,-2609.37557469,0.000279,3]
[390823043,1760172666556,-168.0,0.00027903,2]
[390823044,1760172666566,-292.0,0.00027908,7]
[390823045,1760172666575,-500.0,0.00027921,5]
[390823046,1760172666585,-500.0,0.00027921,5]
[390823047,1760172666594,-502.34036291,0.00027921,5]
[390823048,1760172666604,-1000.0,0.00027921,5]
[390823049,1760172666614,-1000.0,0.00027921,5]
[390823050,1760172666624,-995.03289988,0.00027921,5]
[390823051,1760172666634,-1000.0,0.00027921,5]
[390823052,1760172666643,-250.0,0.00027921,5]
[390823053,1760172666653,-419.0,0.00027945,9]
[390823054,1760172666663,-200.0,0.00027948,2]
[390823055,1760172666673,-165.283065,0.00027964,9]
[390823056,1760172666682,-153.609657,0.00027964,9]
[390823057,1760172666691,-4196.0,0.00027971,2]
[390823058,1760172666701,-294.0,0.00027972,7]
[390823059,1760172666711,-419.0,0.00028,9]
[390823060,1760172666721,-500.0,0.00028012,10]
[390823061,1760172666731,-419.0,0.00028055,9]
[390823062,1760172666740,-7795.54,0.00028085,4]
[390823063,1760172666750,-500.0,0.00028086,2]
[390823064,1760172666759,-3310.35449076,0.000281,2]
[390823065,1760172666769,-419.0,0.00028109,9]
[390823066,1760172666779,-419.0,0.00028164,9]
[390823067,1760172666789,-1500.0,0.00028168,5]
[390823068,1760172666798,-1500.0,0.00028168,5]
[390823069,1760172666809,-1500.0,0.00028168,5]
[390823070,1760172666819,-419.0,0.00028219,9]
[390823071,1760172666829,-165.283065,0.0002822,10]
[390823072,1760172666838,-153.609657,0.0002822,10]
[390823073,1760172666848,-165.283065,0.00028246,9]
[390823074,1760172666858,-153.609657,0.00028246,9]
[390823075,1760172666869,-1000.0,0.00028268,5]
[390823076,1760172666879,-1000.0,0.00028268,5]
[390823077,1760172666888,-397.3257045,0.00028268,5]
[390823078,1760172666897,-1500.0,0.00028268,5]
[390823079,1760172666907,-1000.0,0.00028268,5]
[390823080,1760172666916,-500.0,0.00028268,5]
[390823081,1760172666926,-1500.0,0.00028268,5]
[390823082,1760172666936,-1500.0,0.00028268,5]
[390823083,1760172667190,-500.0,0.00028268,5]
[390823084,1760172667205,-1500.0,0.00028268,5]
[390823085,1760172667219,-419.0,0.00028274,9]
[390823086,1760172667229,-165.283065,0.000283,4]
[390823087,1760172667239,-200.0,0.00028318,120]
[390823088,1760172667248,-419.0,0.00028329,9]
[390823089,1760172667258,-3310.35449076,0.00028367,2]
[390823090,1760172667267,-178.9278,0.00028373,2]
[390823091,1760172667276,-419.0,0.00028383,9]
[390823092,1760172667285,-200.0,0.00028395,120]
[390823093,1760172667294,-419.0,0.00028438,9]
[390823094,1760172667303,-583.64,0.0002845,3]
[390823095,1760172667312,-755.5832068,0.0002845,3]
[390823096,1760172667321,-165.283065,0.0002845,4]
[390823097,1760172667330,-1002.59972105,0.00028468,5]
[390823098,1760172667338,-350.0,0.00028468,5]
[390823099,1760172667348,-178.9278,0.00028473,2]
[390823100,1760172667356,-419.0,0.00028493,9]
[390823101,1760172667365,-165.283065,0.00028528,9]
[390823102,1760172667375,-153.609657,0.00028528,9]
[390823103,1760172667384,-216.44997,0.00028528,9]
[390823104,1760172667394,-419.0,0.00028548,9]
[390823105,1760172667404,-165.283065,0.000286,4]
[390823106,1760172667414,-153.609657,0.000286,4]
[390823107,1760172667424,-419.0,0.00028602,9]
[390823108,1760172667439,-179.92457305,0.00028626,18]
[390823109,1760172667451,-3310.35449076,0.00028635,2]
[390823110,1760172667463,-440.79230813,0.00028657,9]
[390823111,1760172667473,-500.0,0.00028716,5]
[390823112,1760172667483,-500.0,0.00028716,5]
[390823113,1760172667494,-999.21555213,0.00028716,5]
[390823114,1760172667503,-165.283065,0.0002875,4]
[390823115,1760172667512,-153.609657,0.0002875,4]
[390823116,1760172667522,-5757.23903697,0.00028763,16]
[390823117,1760172667532,-557.1,0.00028767,60]
[390823118,1760172667541,-557.1,0.00028767,60]
[390823119,1760172667551,-557.1,0.00028767,60]
[390823120,1760172667562,-557.1,0.00028767,60]
[390823121,1760172667571,-557.1,0.00028767,60]
[390823122,1760172667581,-557.1,0.00028767,60]
[390823123,1760172667590,-557.1,0.00028767,60]
[390823124,1760172667600,-557.1,0.00028767,60]
[390823125,1760172667609,-557.1,0.00028767,60]
[390823126,1760172667619,-557.1,0.00028767,60]
[390823127,1760172667628,-557.1,0.00028767,60]
[390823128,1760172667638,-557.1,0.00028767,60]
[390823129,1760172667647,-557.1,0.00028767,60]
[390823130,1760172667657,-557.1,0.00028767,60]
[390823131,1760172667667,-557.1,0.00028767,60]
[390823132,1760172667676,-557.1,0.00028767,60]
[390823133,1760172667685,-557.1,0.00028767,60]
[390823134,1760172667695,-557.1,0.00028767,60]
[390823135,1760172667704,-557.1,0.00028767,60]
[390823136,1760172667713,-557.1,0.00028767,60]
[390823137,1760172667722,-557.1,0.00028767,60]
[390823138,1760172667731,-557.1,0.00028767,60]
[390823139,1760172667740,-557.1,0.00028767,60]
[390823140,1760172667750,-557.32144144,0.00028767,60]
[390823141,1760172667759,-151.0,0.000288,14]
[390823142,1760172667768,-179.92457305,0.00028802,20]
[390823143,1760172667777,-1000.0,0.00028816,5]
[390823144,1760172667787,-1500.0,0.00028816,5]
[390823145,1760172667797,-1502.18522001,0.00028816,5]
[390823146,1760172667809,-2000.0,0.00028816,5]
[390823147,1760172667818,-1952.825185,0.00028827,2]
[390823148,1760172667827,-500.0,0.0002889,5]
[390823149,1760172667837,-335.84676443,0.0002889,5]
[390823150,1760172667846,-4810.09,0.000289,2]
[390823151,1760172667855,-10193.77,0.000289,2]
[390823152,1760172667867,-165.283065,0.000289,4]
[390823153,1760172667878,-153.609657,0.000289,4]
[390823154,1760172667887,-3310.35449076,0.00028902,2]
[390823155,1760172667897,-179.92457305,0.00028978,22]
[390823156,1760172667907,-151.0,0.00029,13]
[390823157,1760172667916,-1050.29,0.00029,2]
[390823158,1760172667925,-200.0,0.00029011,120]
[390823159,1760172667934,-450.0,0.00029016,5]
[390823160,1760172667944,-1293.98877685,0.00029039,2]
[390823161,1760172667954,-165.283065,0.00029064,10]
[390823162,1760172667963,-153.609657,0.00029064,10]
[390823163,1760172667973,-200.0,0.00029121,120]
[390823164,1760172667982,-11994.78,0.00029125,11]
[390823165,1760172667991,-20386.48,0.0002913,11]
[390823166,1760172668000,-179.92457305,0.00029154,24]
[390823167,1760172668010,-3310.35449076,0.0002917,2]
[390823168,1760172668019,-1050.29,0.00029174,2]
[390823169,1760172668029,-7795.54,0.00029181,6]
[390823170,1760172668038,-1293.98877685,0.00029214,2]
[390823171,1760172668048,-151.0,0.000293,18]
[390823172,1760172668058,-179.92457305,0.0002933,26]
[390823173,1760172668067,-1293.98877686,0.00029332,2]
[390823174,1760172668077,-1050.29,0.00029348,2]
[390823175,1760172668087,-2500.0,0.00029364,5]
[390823176,1760172668096,-165.283065,0.00029425,2]
[390823177,1760172668106,-3310.35449076,0.00029437,2]
[390823178,1760172668115,-165.283065,0.00029473,5]
[390823179,1760172668125,-151.0,0.000295,13]
[390823180,1760172668135,-1501.916373,0.000295,2]
[390823181,1760172668145,-179.92457305,0.00029506,28]
[390823182,1760172668155,-1050.29,0.00029522,2]
[390823183,1760172668164,-652.8211548,0.00029538,24]
[390823184,1760172668174,-550.0,0.00029564,5]
[390823185,1760172668184,-165.283065,0.00029568,5]
[390823186,1760172668194,-153.609657,0.00029568,5]
[390823187,1760172668203,-250.0,0.000296,10]
[390823188,1760172668214,-165.283065,0.00029664,5]
[390823189,1760172668223,-153.609657,0.00029664,5]
[390823190,1760172668233,-150.0,0.00029673,5]
[390823191,1760172668243,-165.283065,0.00029675,30]
[390823192,1760172668253,-179.92457305,0.00029682,30]
[390823193,1760172668262,-165.283065,0.00029682,20]
[390823194,1760172668271,-1050.29,0.00029696,2]
[390823195,1760172668281,-165.283065,0.00029697,30]
[390823196,1760172668290,-153.609657,0.00029697,30]
[390823197,1760172668299,-250.0,0.000297,10]
[390823198,1760172668308,-165.283065,0.00029705,32]
[390823199,1760172668317,-3310.35449076,0.00029705,2]
[390823200,1760172668326,-151.0,0.00029705,30]
[390823201,1760172668335,-151.0,0.00029705,30]
[390823202,1760172668344,-151.0,0.00029705,30]
[390823203,1760172668354,-359306.3969,0.00029705,7]
[390823204,1760172668363,-165.283065,0.0002971,20]
[390823205,1760172668372,-153.609657,0.0002971,20]
[390823206,1760172668381,-165.283065,0.00029719,30]
[390823207,1760172668390,-153.609657,0.00029719,30]
[390823208,1760172668400,-165.283065,0.00029729,32]
[390823209,1760172668409,-153.609657,0.00029729,32]
[390823210,1760172668418,-160.0,0.00029734,4]
[390823211,1760172668427,-277.37209656,0.00029734,5]
[390823212,1760172668437,-165.283065,0.00029737,20]
[390823213,1760172668447,-153.609657,0.00029737,20]
[390823214,1760172668458,-357.77,0.00029739,2]
[390823215,1760172668467,-357.77,0.00029739,2]
[390823216,1760172668477,-357.77,0.00029739,2]
[390823217,1760172668486,-357.77,0.00029739,2]
[390823218,1760172668495,-357.77,0.00029739,2]
[390823219,1760172668504,-357.77,0.00029739,2]
[390823220,1760172668513,-165.283065,0.00029741,30]
[390823221,1760172668522,-153.609657,0.00029741,30]
[390823222,1760172668531,-151.0,0.00029743,30]
[390823223,1760172668540,-151.0,0.00029743,30]
[390823224,1760172668550,-151.0,0.00029743,30]
[390823225,1760172668559,-151.0,0.00029743,30]
[390823226,1760172668568,-151.0,0.00029743,30]
[390823227,1760172668578,-170.517299,0.00029743,30]
[390823228,1760172668587,-151.0,0.00029743,30]
[390823229,1760172668596,-151.0,0.00029743,30]
[390823230,1760172668605,-209.388184,0.00029743,30]
[390823231,1760172668614,-151.0,0.00029743,30]
[390823232,1760172668624,-151.0,0.00029743,30]
[390823233,1760172668633,-151.0,0.00029743,30]
[390823234,1760172668642,-151.0,0.00029743,30]
[390823235,1760172668652,-151.219672,0.00029743,30]
[390823236,1760172668661,-151.0,0.00029743,30]
[390823237,1760172668670,-151.0,0.00029743,30]
[390823238,1760172668679,-151.0,0.00029743,30]
[390823239,1760172668688,-151.0,0.00029743,30]
[390823240,1760172668697,-151.0,0.00029743,30]
[390823241,1760172668707,-151.0,0.00029743,30]
[390823242,1760172668717,-151.0,0.00029743,30]
[390823243,1760172668726,-151.0,0.00029743,30]
[390823244,1760172668736,-151.0,0.00029743,30]
[390823245,1760172668745,-151.0,0.00029743,30]
[390823246,1760172668754,-151.0,0.00029743,30]
[390823247,1760172668764,-151.0,0.00029743,30]
[390823248,1760172668773,-209.682734,0.00029743,30]
[390823249,1760172668783,-209.682734,0.00029743,30]
[390823250,1760172668793,-209.682734,0.00029743,30]
[390823251,1760172668803,-209.682734,0.00029743,30]
[390823252,1760172668811,-209.682734,0.00029743,30]
[390823253,1760172668821,-209.682734,0.00029743,30]
[390823254,1760172668831,-209.682734,0.00029743,30]
[390823255,1760172668841,-209.682734,0.00029743,30]
[390823256,1760172668850,-209.682734,0.00029743,30]
[390823257,1760172668860,-209.682734,0.00029743,30]
[390823258,1760172668872,-209.682734,0.00029743,30]
[390823259,1760172668881,-209.682734,0.00029743,30]
[390823260,1760172668890,-209.682734,0.00029743,30]
[390823261,1760172668900,-209.682734,0.00029743,30]
[390823262,1760172668910,-209.682734,0.00029743,30]
[390823263,1760172668919,-209.682734,0.00029743,30]
[390823264,1760172668929,-209.682734,0.00029743,30]
[390823265,1760172668939,-209.682734,0.00029743,30]
[390823266,1760172668950,-209.682734,0.00029743,30]
[390823267,1760172668959,-209.682728,0.00029743,30]
[390823268,1760172668969,-248.570624,0.00029743,30]
[390823269,1760172668978,-248.570624,0.00029743,30]
[390823270,1760172668988,-248.570624,0.00029743,30]
[390823271,1760172668997,-248.570624,0.00029743,30]
[390823272,1760172669006,-248.570624,0.00029743,30]
[390823273,1760172669016,-248.570624,0.00029743,30]
[390823274,1760172669025,-248.570624,0.00029743,30]
[390823275,1760172669034,-248.570624,0.00029743,30]
[390823276,1760172669043,-248.570624,0.00029743,30]
[390823277,1760172669052,-248.570624,0.00029743,30]
[390823278,1760172669061,-248.570624,0.00029743,30]
[390823279,1760172669071,-248.570624,0.00029743,30]
[390823280,1760172669080,-248.570624,0.00029743,30]
[390823281,1760172669089,-248.570624,0.00029743,30]
[390823282,1760172669098,-248.570624,0.00029743,30]
[390823283,1760172669107,-248.570624,0.00029743,30]
[390823284,1760172669116,-248.570624,0.00029743,30]
[390823285,1760172669125,-248.570624,0.00029743,30]
[390823286,1760172669135,-248.570624,0.00029743,30]
[390823287,1760172669144,-248.570623,0.00029743,30]
[390823288,1760172669153,-151.0,0.00029743,30]
[390823289,1760172669162,-151.0,0.00029743,30]
[390823290,1760172669171,-151.0,0.00029743,30]
[390823291,1760172669181,-151.0,0.00029743,30]
[390823292,1760172669190,-151.0,0.00029743,30]
[390823293,1760172669199,-151.0,0.00029743,30]
[390823294,1760172669208,-151.0,0.00029743,30]
[390823295,1760172669218,-151.0,0.00029743,30]
[390823296,1760172669227,-151.0,0.00029743,30]
[390823297,1760172669237,-151.0,0.00029743,30]
[390823298,1760172669246,-151.0,0.00029743,30]
[390823299,1760172669256,-151.0,0.00029743,30]
[390823300,1760172669265,-151.0,0.00029743,30]
[390823301,1760172669274,-151.0,0.00029743,30]
[390823302,1760172669283,-151.0,0.00029743,30]
[390823303,1760172669293,-151.0,0.00029743,30]
[390823304,1760172669302,-282.55011,0.00029743,30]
[390823305,1760172669311,-151.0,0.00029743,30]
[390823306,1760172669320,-152.020319,0.00029743,30]
[390823307,1760172669330,-165.283065,0.00029752,32]
[390823308,1760172669339,-153.609657,0.00029752,32]
[390823309,1760172669348,-391.9198272,0.00029753,30]
[390823310,1760172669358,-391.9198272,0.00029753,30]
[390823311,1760172669366,-391.9198272,0.00029753,30]
[390823312,1760172669376,-391.9198272,0.00029753,30]
[390823313,1760172669385,-391.9198272,0.00029753,30]
[390823314,1760172669394,-391.9198272,0.00029753,30]
[390823315,1760172669403,-391.9198272,0.00029753,30]
[390823316,1760172669412,-391.9198272,0.00029753,30]
[390823317,1760172669422,-391.9198272,0.00029753,30]
[390823318,1760172669431,-390.5301542,0.00029753,30]
[390823319,1760172669441,-162.8757457,0.00029753,30]
[390823320,1760172669451,-297.8851395,0.00029753,30]
[390823321,1760172669462,-588.4106815,0.00029753,30]
[390823322,1760172669471,-165.283065,0.00029759,5]
[390823323,1760172669481,-153.609657,0.00029759,5]
[390823324,1760172669490,-165.283065,0.00029764,30]
[390823325,1760172669499,-153.609657,0.00029764,30]
[390823326,1760172669509,-165.283065,0.00029765,20]
[390823327,1760172669518,-153.609657,0.00029765,20]
[390823328,1760172669527,-151.0,0.00029765,30]
[390823329,1760172669536,-151.0,0.00029765,30]
[390823330,1760172669545,-151.0,0.00029765,30]
[390823331,1760172669555,-1054.85826,0.00029765,30]
[390823332,1760172669564,-1054.85826,0.00029765,30]
[390823333,1760172669574,-151.0,0.00029765,30]
[390823334,1760172669584,-1054.85826,0.00029765,30]
[390823335,1760172669593,-151.0,0.00029765,30]
[390823336,1760172669602,-1054.85826,0.00029765,30]
[390823337,1760172669612,-151.0,0.00029765,30]
[390823338,1760172669621,-151.0,0.00029765,30]
[390823339,1760172669631,-151.0,0.00029765,30]
[390823340,1760172669640,-151.0,0.00029765,30]
[390823341,1760172669649,-227.164846,0.00029765,30]
[390823342,1760172669659,-227.164846,0.00029765,30]
[390823343,1760172669668,-227.164846,0.00029765,30]
[390823344,1760172669677,-227.164846,0.00029765,30]
[390823345,1760172669688,-165.283065,0.00029766,2]
[390823346,1760172669697,-153.609657,0.00029766,2]
[390823347,1760172669706,-151.0,0.0002977,30]
[390823348,1760172669715,-151.0,0.0002977,30]
[390823349,1760172669724,-178.536086,0.0002977,30]
[390823350,1760172669733,-151.0,0.0002977,30]
[390823351,1760172669742,-151.0,0.0002977,30]
[390823352,1760172669751,-151.0,0.0002977,30]
[390823353,1760172669760,-151.0,0.0002977,30]
[390823354,1760172669769,-152.830013,0.0002977,30]
[390823355,1760172669779,-151.0,0.0002977,30]
[390823356,1760172669788,-151.0,0.0002977,30]
[390823357,1760172669797,-151.0,0.0002977,30]
[390823358,1760172669806,-151.0,0.0002977,30]
[390823359,1760172669816,-151.0,0.0002977,30]
[390823360,1760172669825,-280.227845,0.0002977,30]
[390823361,1760172669834,-151.0,0.0002977,30]
[390823362,1760172669843,-239.877685,0.0002977,30]
[390823363,1760172669852,-151.0,0.0002977,30]
[390823364,1760172669862,-151.0,0.0002977,30]
[390823365,1760172669876,-151.0,0.0002977,30]
[390823366,1760172669885,-151.0,0.0002977,30]
[390823367,1760172669895,-151.0,0.0002977,30]
[390823368,1760172669905,-151.0,0.0002977,30]
[390823369,1760172669915,-151.0,0.0002977,30]
[390823370,1760172669924,-151.0,0.0002977,30]
[390823371,1760172669933,-157.718733,0.0002977,30]
[390823372,1760172669943,-151.0,0.0002977,30]
[390823373,1760172669953,-151.0,0.0002977,30]
[390823374,1760172669964,-151.0,0.0002977,30]
[390823375,1760172669973,-151.0,0.0002977,30]
[390823376,1760172669983,-151.0,0.0002977,30]
[390823377,1760172669992,-151.0,0.0002977,30]
[390823378,1760172670001,-151.0,0.0002977,30]
[390823379,1760172670010,-151.0,0.0002977,30]
[390823380,1760172670020,-151.0,0.0002977,30]
[390823381,1760172670029,-151.0,0.0002977,30]
[390823382,1760172670039,-151.0,0.0002977,30]
[390823383,1760172670048,-151.0,0.0002977,30]
[390823384,1760172670057,-151.0,0.0002977,30]
[390823385,1760172670066,-151.0,0.0002977,30]
[390823386,1760172670075,-151.0,0.0002977,30]
[390823387,1760172670084,-151.0,0.0002977,30]
[390823388,1760172670093,-151.0,0.0002977,30]
[390823389,1760172670102,-151.0,0.0002977,30]
[390823390,1760172670111,-151.0,0.0002977,30]
[390823391,1760172670121,-151.0,0.0002977,30]
[390823392,1760172670131,-151.0,0.0002977,30]
[390823393,1760172670140,-235.98413,0.0002977,30]
[390823394,1760172670149,-151.0,0.0002977,30]
[390823395,1760172670158,-151.0,0.0002977,30]
[390823396,1760172670168,-151.0,0.0002977,30]
[390823397,1760172670177,-151.0,0.0002977,30]
[390823398,1760172670186,-151.0,0.0002977,30]
[390823399,1760172670195,-151.0,0.0002977,30]
[390823400,1760172670205,-151.0,0.0002977,30]
[390823401,1760172670215,-151.0,0.0002977,30]
[390823402,1760172670225,-151.0,0.0002977,30]
[390823403,1760172670234,-151.0,0.0002977,30]
[390823404,1760172670243,-151.0,0.0002977,30]
[390823405,1760172670253,-151.0,0.0002977,30]
[390823406,1760172670261,-151.0,0.0002977,30]
[390823407,1760172670271,-151.0,0.0002977,30]
[390823408,1760172670280,-151.0,0.0002977,30]
[390823409,1760172670289,-151.0,0.0002977,30]
[390823410,1760172670298,-170.989405,0.0002977,30]
[390823411,1760172670307,-151.0,0.0002977,30]
[390823412,1760172670316,-151.373872,0.0002977,30]
[390823413,1760172670325,-151.0,0.0002977,30]
[390823414,1760172670334,-151.0,0.0002977,30]
[390823415,1760172670343,-151.0,0.0002977,30]
[390823416,1760172670353,-151.0,0.0002977,30]
[390823417,1760172670362,-275.576735,0.0002977,30]
[390823418,1760172670371,-151.0,0.0002977,30]
[390823419,1760172670380,-151.0,0.0002977,30]
[390823420,1760172670390,-164.284316,0.0002977,30]
[390823421,1760172670398,-164.284316,0.0002977,30]